[Event "*** Titled Tuesday 3|2 Blitz"]
[Site "Chess.com"]
[Date "2016.08.02"]
[Round "8"]
[White "Pudor"]
[Black "1stSecond"]
[Result "0-1"]
[WhiteElo "2299"]
[BlackElo "2537"]
[TimeControl "180+2"]
[EndTime "12:49:07 PDT"]
[Termination "1stSecond won by resignation"]

1. d4 {[%clk 0:03:01.9]} 1... Nf6 {[%clk 0:03:00.5]} 2. c4 {[%clk 0:03:02.3]}
2... g6 {[%clk 0:02:56.7]} 3. Nc3 {[%clk 0:03:03]} 3... Bg7 {[%clk 0:02:58.3]}
4. e4 {[%clk 0:03:03.5]} 4... d6 {[%clk 0:02:59.8]} 5. Nf3 {[%clk 0:03:04.1]}
5... O-O {[%clk 0:03:01.4]} 6. Be2 {[%clk 0:03:04.8]} 6... e5 {[%clk 0:03:01.4]}
7. O-O {[%clk 0:03:05.8]} 7... Nbd7 {[%clk 0:02:59.7]} 8. Be3 {[%clk 0:03:02.7]}
8... Nh5 {[%clk 0:02:57.7]} 9. dxe5 {[%clk 0:03:01.4]} 9... dxe5 {[%clk
0:02:58.5]} 10. g3 {[%clk 0:02:44.5]} 10... Nhf6 {[%clk 0:02:47]} 11. Ne1 {[%clk
0:02:32.5]} 11... c6 {[%clk 0:02:35.6]} 12. b4 {[%clk 0:02:26.4]} 12... Qe7
{[%clk 0:02:35.5]} 13. c5 {[%clk 0:02:26.7]} 13... Rd8 {[%clk 0:02:36.7]} 14.
Qc2 {[%clk 0:02:22.3]} 14... a5 {[%clk 0:02:32.2]} 15. Nd3 {[%clk 0:01:57.4]}
15... axb4 {[%clk 0:02:28.8]} 16. Na4 {[%clk 0:01:58.2]} 16... Nxe4 {[%clk
0:02:27.4]} 17. Nxb4 {[%clk 0:01:54.3]} 17... Ndf6 {[%clk 0:01:55.7]} 18. Nb6
{[%clk 0:01:51.3]} 18... Ra5 {[%clk 0:01:42.8]} 19. Rac1 {[%clk 0:01:23.4]}
19... Bf5 {[%clk 0:01:38.5]} 20. g4 {[%clk 0:01:15.8]} 20... Bxg4 {[%clk
0:00:58]} 21. Bxg4 {[%clk 0:01:17.7]} 21... Nxg4 {[%clk 0:00:59.5]} 22. Qxe4
{[%clk 0:01:17.3]} 22... Qh4 {[%clk 0:01:01.1]} 23. Qg2 {[%clk 0:01:03.1]} 23...
Nxe3 {[%clk 0:01:02]} 24. fxe3 {[%clk 0:00:58.9]} 24... Qxb4 {[%clk 0:01:03.1]}
25. Rcd1 {[%clk 0:00:50]} 25... Rxd1 {[%clk 0:00:29.1]} 26. Rxd1 {[%clk
0:00:51.9]} 26... Rxc5 {[%clk 0:00:29.7]} 27. Rd8+ {[%clk 0:00:19.1]} 27... Bf8
{[%clk 0:00:30.4]} 28. Rxf8+ {[%clk 0:00:16.9]} 28... Kxf8 {[%clk 0:00:30.5]}
29. Nd7+ {[%clk 0:00:18.3]} 29... Kg7 {[%clk 0:00:24.7]} 30. Nxc5 {[%clk
0:00:18.8]} 30... Qxc5 {[%clk 0:00:26.3]} 31. Qg5 {[%clk 0:00:20]} 31... Qd5
{[%clk 0:00:21.3]} 32. Qg3 {[%clk 0:00:19.8]} 32... h6 {[%clk 0:00:20.5]} 33. h4
{[%clk 0:00:20.5]} 33... b5 {[%clk 0:00:19]} 34. Qf2 {[%clk 0:00:20.9]} 34... b4
{[%clk 0:00:18.2]} 35. Qb2 {[%clk 0:00:21.7]} 35... c5 {[%clk 0:00:19.6]} 36.
Kf2 {[%clk 0:00:22]} 36... Qe4 {[%clk 0:00:20.6]} 37. Ke2 {[%clk 0:00:22.8]}
37... Qg2+ {[%clk 0:00:21]} 0-1

[Event "*** Titled Tuesday 3|2 Blitz"]
[Site "Chess.com"]
[Date "2016.08.02"]
[Round "8"]
[White "BillieKimbah"]
[Black "Genghis_K"]
[Result "1-0"]
[WhiteElo "2532"]
[BlackElo "2666"]
[TimeControl "180+2"]
[EndTime "12:49:25 PDT"]
[Termination "BillieKimbah won by resignation"]

1. d4 {[%clk 0:03:01.4]} 1... d5 {[%clk 0:02:56.5]} 2. c4 {[%clk 0:02:58.5]}
2... dxc4 {[%clk 0:02:58.4]} 3. Nf3 {[%clk 0:02:58.9]} 3... Nf6 {[%clk
0:02:56.8]} 4. e3 {[%clk 0:02:59.6]} 4... Bg4 {[%clk 0:02:55.9]} 5. Bxc4 {[%clk
0:02:59]} 5... e6 {[%clk 0:02:57.1]} 6. Nc3 {[%clk 0:02:59]} 6... Nc6 {[%clk
0:02:53.7]} 7. Bb5 {[%clk 0:02:50.3]} 7... Bd6 {[%clk 0:02:51.3]} 8. Qa4 {[%clk
0:02:49.7]} 8... Bxf3 {[%clk 0:02:48.7]} 9. gxf3 {[%clk 0:02:49.7]} 9... O-O
{[%clk 0:02:50]} 10. Bxc6 {[%clk 0:02:50.1]} 10... bxc6 {[%clk 0:02:51.9]} 11.
Qxc6 {[%clk 0:02:51.1]} 11... Rb8 {[%clk 0:02:53.6]} 12. b3 {[%clk 0:02:46.6]}
12... Rb6 {[%clk 0:02:31]} 13. Qc4 {[%clk 0:02:46.7]} 13... Qa8 {[%clk
0:02:28.4]} 14. Qe2 {[%clk 0:02:47.3]} 14... e5 {[%clk 0:02:14.6]} 15. dxe5
{[%clk 0:02:35.8]} 15... Bxe5 {[%clk 0:02:14.5]} 16. Bb2 {[%clk 0:02:37.4]}
16... Rd8 {[%clk 0:02:05.9]} 17. Na4 {[%clk 0:02:25.5]} 17... Bxb2 {[%clk
0:01:51.9]} 18. Nxb2 {[%clk 0:02:26.2]} 18... Nd5 {[%clk 0:01:43.5]} 19. Nc4
{[%clk 0:02:23.8]} 19... Re6 {[%clk 0:01:40.4]} 20. O-O-O {[%clk 0:02:14.5]}
20... a5 {[%clk 0:01:38.5]} 21. Rd4 {[%clk 0:02:11.5]} 21... c5 {[%clk
0:01:37.9]} 22. Rd3 {[%clk 0:02:07.1]} 22... Rde8 {[%clk 0:01:16.6]} 23. Qd2
{[%clk 0:02:02.1]} 23... Nb4 {[%clk 0:01:15.5]} 24. Rd7 {[%clk 0:02:01.9]} 24...
Qxf3 {[%clk 0:01:08.8]} 25. Rg1 {[%clk 0:02:02.3]} 25... Qf6 {[%clk 0:01:03.5]}
26. Qb2 {[%clk 0:01:57.4]} 26... Qxb2+ {[%clk 0:00:48.9]} 27. Kxb2 {[%clk
0:01:58]} 27... Rf6 {[%clk 0:00:50.8]} 28. Rg2 {[%clk 0:01:52.4]} 28... Ra8
{[%clk 0:00:47.6]} 29. a4 {[%clk 0:01:32.9]} 29... h6 {[%clk 0:00:40]} 30. f4
{[%clk 0:01:23.8]} 30... Re6 {[%clk 0:00:38.8]} 31. Rgd2 {[%clk 0:01:24.3]}
31... g6 {[%clk 0:00:27.4]} 32. Rc7 {[%clk 0:01:24.7]} 32... Na6 {[%clk
0:00:25.2]} 33. Rb7 {[%clk 0:01:25.6]} 33... Nb4 {[%clk 0:00:24.1]} 34. Rb5
{[%clk 0:01:20.5]} 34... Nc6 {[%clk 0:00:19.3]} 35. Rxc5 {[%clk 0:01:20.3]}
35... Rb8 {[%clk 0:00:19.5]} 36. Rb5 {[%clk 0:01:16.2]} 36... Ra8 {[%clk
0:00:17.4]} 37. Rd6 {[%clk 0:01:15.3]} 37... Rxd6 {[%clk 0:00:18]} 38. Nxd6
{[%clk 0:01:16.9]} 38... Rd8 {[%clk 0:00:18.5]} 39. Nc4 {[%clk 0:01:17.4]} 39...
Ra8 {[%clk 0:00:15.3]} 40. Rc5 {[%clk 0:01:17.5]} 40... Ra6 {[%clk 0:00:14.2]}
41. Rb5 {[%clk 0:01:17.5]} 41... Ra8 {[%clk 0:00:14.1]} 42. Kc3 {[%clk
0:01:17.4]} 42... Kg7 {[%clk 0:00:14.2]} 43. Rb6 {[%clk 0:01:17.7]} 43... Nb4
{[%clk 0:00:15.5]} 44. Rb5 {[%clk 0:01:18]} 44... Nc6 {[%clk 0:00:16.2]} 45. Rc5
{[%clk 0:01:18.4]} 45... Ra6 {[%clk 0:00:16.9]} 46. Ne5 {[%clk 0:01:20]} 46...
Nb4 {[%clk 0:00:12.6]} 47. Nc4 {[%clk 0:01:13.7]} 47... Nc6 {[%clk 0:00:12]} 48.
Rd5 {[%clk 0:01:15.2]} 48... Nb4 {[%clk 0:00:12.8]} 49. Rxa5 {[%clk 0:01:14.4]}
49... Rxa5 {[%clk 0:00:09.9]} 50. Nxa5 {[%clk 0:01:14.7]} 50... Nd5+ {[%clk
0:00:11.8]} 51. Kd4 {[%clk 0:01:15.2]} 1-0

[Event "*** Titled Tuesday 3|2 Blitz"]
[Site "Chess.com"]
[Date "2016.08.02"]
[Round "8"]
[White "dabee"]
[Black "Schemato"]
[Result "1-0"]
[WhiteElo "2432"]
[BlackElo "2239"]
[TimeControl "180+2"]
[EndTime "12:49:37 PDT"]
[Termination "dabee won by checkmate"]

1. d4 {[%clk 0:03:01.9]} 1... e6 {[%clk 0:03:00.7]} 2. Nf3 {[%clk 0:02:58.8]}
2... c5 {[%clk 0:02:59.5]} 3. c3 {[%clk 0:02:54]} 3... Nf6 {[%clk 0:02:51.9]} 4.
Bg5 {[%clk 0:02:52.1]} 4... h6 {[%clk 0:02:40.9]} 5. Bh4 {[%clk 0:02:47.7]} 5...
b6 {[%clk 0:02:39.1]} 6. Nbd2 {[%clk 0:02:45.7]} 6... Bb7 {[%clk 0:02:33]} 7. e3
{[%clk 0:02:46]} 7... Be7 {[%clk 0:02:32.2]} 8. Bd3 {[%clk 0:02:46.1]} 8... d5
{[%clk 0:02:27.1]} 9. Ne5 {[%clk 0:02:40.5]} 9... Nbd7 {[%clk 0:02:03.6]} 10. f4
{[%clk 0:02:32.2]} 10... O-O {[%clk 0:01:39]} 11. O-O {[%clk 0:02:20.9]} 11...
Ne4 {[%clk 0:01:38.2]} 12. Bxe7 {[%clk 0:02:16.2]} 12... Qxe7 {[%clk 0:01:40.1]}
13. Qe2 {[%clk 0:01:46.8]} 13... Nxe5 {[%clk 0:01:38.8]} 14. fxe5 {[%clk
0:01:46.5]} 14... Nxd2 {[%clk 0:01:30.3]} 15. Qxd2 {[%clk 0:01:46.2]} 15... f6
{[%clk 0:01:28.2]} 16. exf6 {[%clk 0:01:41.9]} 16... Rxf6 {[%clk 0:01:28.9]} 17.
Rxf6 {[%clk 0:01:42]} 17... Qxf6 {[%clk 0:01:30]} 18. Rf1 {[%clk 0:01:42.6]}
18... Qg5 {[%clk 0:01:31]} 19. Qf2 {[%clk 0:01:41.2]} 19... Qe7 {[%clk
0:01:25.3]} 20. Qg3 {[%clk 0:01:40.9]} 20... Rf8 {[%clk 0:01:23]} 21. Rxf8+
{[%clk 0:01:38.5]} 21... Kxf8 {[%clk 0:01:23.6]} 22. Bg6 {[%clk 0:01:36.1]}
22... Bc8 {[%clk 0:00:52.2]} 23. Qb8 {[%clk 0:01:18]} 23... Qd7 {[%clk
0:00:50.2]} 24. h4 {[%clk 0:01:12.8]} 24... Ke7 {[%clk 0:00:49]} 25. Qf4 {[%clk
0:01:06.8]} 25... Kd8 {[%clk 0:00:44.9]} 26. dxc5 {[%clk 0:01:00.5]} 26... bxc5
{[%clk 0:00:44.6]} 27. Qf8+ {[%clk 0:01:00.5]} 27... Kc7 {[%clk 0:00:43.4]} 28.
Qxc5+ {[%clk 0:01:01.2]} 28... Kb8 {[%clk 0:00:44.2]} 29. Bd3 {[%clk 0:00:54.3]}
29... Qd8 {[%clk 0:00:26]} 30. Qd4 {[%clk 0:00:39.8]} 30... g5 {[%clk
0:00:23.5]} 31. hxg5 {[%clk 0:00:37.9]} 31... hxg5 {[%clk 0:00:25.4]} 32. e4
{[%clk 0:00:37.3]} 32... Qb6 {[%clk 0:00:18.3]} 33. Qxb6+ {[%clk 0:00:36.8]}
33... axb6 {[%clk 0:00:20.2]} 34. e5 {[%clk 0:00:32.5]} 34... Kc7 {[%clk
0:00:20.7]} 35. Kf2 {[%clk 0:00:33.6]} 35... Kc6 {[%clk 0:00:20.3]} 36. Kf3
{[%clk 0:00:33.4]} 36... d4 {[%clk 0:00:17.4]} 37. cxd4 {[%clk 0:00:31.5]} 37...
Kd5 {[%clk 0:00:18.2]} 38. Ke3 {[%clk 0:00:32.6]} 38... Bd7 {[%clk 0:00:18.1]}
39. Be4+ {[%clk 0:00:32.2]} 39... Kc4 {[%clk 0:00:18.8]} 40. Bd3+ {[%clk
0:00:32.7]} 40... Kd5 {[%clk 0:00:19.6]} 41. b3 {[%clk 0:00:34]} 41... b5 {[%clk
0:00:20.5]} 42. Be4# {[%clk 0:00:34.9]} 1-0

[Event "*** Titled Tuesday 3|2 Blitz"]
[Site "Chess.com"]
[Date "2016.08.02"]
[Round "8"]
[White "shivakaka"]
[Black "Wolverine_master"]
[Result "0-1"]
[WhiteElo "2110"]
[BlackElo "2019"]
[TimeControl "180+2"]
[EndTime "12:49:58 PDT"]
[Termination "Wolverine_master won by checkmate"]

1. e4 {[%clk 0:02:57.7]} 1... e5 {[%clk 0:02:59.6]} 2. Nf3 {[%clk 0:02:55]} 2...
Nc6 {[%clk 0:03:00.3]} 3. d4 {[%clk 0:02:55.1]} 3... exd4 {[%clk 0:03:00.8]} 4.
Bc4 {[%clk 0:02:53.7]} 4... Nf6 {[%clk 0:02:55.8]} 5. e5 {[%clk 0:02:54.2]} 5...
d5 {[%clk 0:02:57]} 6. Bb5 {[%clk 0:02:53.7]} 6... Ne4 {[%clk 0:02:58.1]} 7.
Nxd4 {[%clk 0:02:52.7]} 7... Bd7 {[%clk 0:02:56.8]} 8. Bxc6 {[%clk 0:02:52.3]}
8... bxc6 {[%clk 0:02:57.6]} 9. O-O {[%clk 0:02:53.7]} 9... Bc5 {[%clk
0:02:57.9]} 10. f3 {[%clk 0:02:53.4]} 10... Ng5 {[%clk 0:02:49]} 11. f4 {[%clk
0:02:54.2]} 11... Ne4 {[%clk 0:02:44.5]} 12. Be3 {[%clk 0:02:54.8]} 12... Qb8
{[%clk 0:02:24]} 13. b3 {[%clk 0:02:52.9]} 13... Qb6 {[%clk 0:02:23.7]} 14. f5
{[%clk 0:02:31.1]} 14... O-O {[%clk 0:01:49.4]} 15. f6 {[%clk 0:02:25.1]} 15...
Rfe8 {[%clk 0:01:34.5]} 16. e6 {[%clk 0:02:22.2]} 16... Bxe6 {[%clk 0:01:29.4]}
17. c3 {[%clk 0:02:14.5]} 17... Nxf6 {[%clk 0:01:23.5]} 18. Rxf6 {[%clk
0:02:10.7]} 18... gxf6 {[%clk 0:01:21.7]} 19. Bh6 {[%clk 0:02:10.9]} 19... Kh8
{[%clk 0:01:08.7]} 20. b4 {[%clk 0:01:55.6]} 20... Bxd4+ {[%clk 0:00:49.7]} 21.
cxd4 {[%clk 0:01:55.2]} 21... Qxb4 {[%clk 0:00:46.1]} 22. a3 {[%clk 0:01:51.1]}
22... Qb2 {[%clk 0:00:44.8]} 23. Nd2 {[%clk 0:00:57.4]} 23... Qxd4+ {[%clk
0:00:44.9]} 24. Kh1 {[%clk 0:00:57.6]} 24... Bg4 {[%clk 0:00:43.4]} 25. Qf1
{[%clk 0:00:48.2]} 25... Re6 {[%clk 0:00:26.1]} 26. h3 {[%clk 0:00:48]} 26...
Be2 {[%clk 0:00:21.2]} 27. Qc1 {[%clk 0:00:42.2]} 27... Rg8 {[%clk 0:00:18.1]}
28. Rb1 {[%clk 0:00:41.9]} 28... Qe5 {[%clk 0:00:13.7]} 29. Nf1 {[%clk
0:00:33.9]} 29... Bxf1 {[%clk 0:00:13.2]} 30. Qxf1 {[%clk 0:00:33.6]} 30... d4
{[%clk 0:00:13.4]} 31. Bf4 {[%clk 0:00:31.9]} 31... Qe4 {[%clk 0:00:11.5]} 32.
Bxc7 {[%clk 0:00:30.4]} 32... Rxg2 {[%clk 0:00:12]} 33. Qxg2 {[%clk 0:00:28.4]}
33... Qxb1+ {[%clk 0:00:12.5]} 34. Kh2 {[%clk 0:00:30.3]} 34... d3 {[%clk
0:00:12.8]} 35. Kg3 {[%clk 0:00:14.6]} 35... Qe1+ {[%clk 0:00:10.7]} 36. Kg4
{[%clk 0:00:12.5]} 36... Qe4+ {[%clk 0:00:11.7]} 37. Bf4 {[%clk 0:00:12]} 37...
Qxg2+ {[%clk 0:00:12.1]} 38. Kh4 {[%clk 0:00:12.3]} 38... d2 {[%clk 0:00:13.7]}
39. Bxd2 {[%clk 0:00:12.1]} 39... Qxd2 {[%clk 0:00:14]} 40. a4 {[%clk
0:00:11.4]} 40... Qd4+ {[%clk 0:00:15.9]} 41. Kh5 {[%clk 0:00:10.7]} 41... Re5+
{[%clk 0:00:17]} 42. Kh6 {[%clk 0:00:12]} 42... Qh4# {[%clk 0:00:18.6]} 0-1

[Event "*** Titled Tuesday 3|2 Blitz"]
[Site "Chess.com"]
[Date "2016.08.02"]
[Round "8"]
[White "sandropozo"]
[Black "Astaneh"]
[Result "1-0"]
[WhiteElo "2386"]
[BlackElo "2478"]
[TimeControl "180+2"]
[EndTime "12:49:59 PDT"]
[Termination "sandropozo won on time"]

1. d4 {[%clk 0:03:00.5]} 1... Nf6 {[%clk 0:02:59.7]} 2. Nf3 {[%clk 0:03:00]}
2... g6 {[%clk 0:02:58.9]} 3. g3 {[%clk 0:03:00]} 3... Bg7 {[%clk 0:03:00]} 4.
Bg2 {[%clk 0:03:00.5]} 4... O-O {[%clk 0:02:57]} 5. O-O {[%clk 0:03:02]} 5... d5
{[%clk 0:02:57]} 6. c4 {[%clk 0:03:02.5]} 6... dxc4 {[%clk 0:02:51.3]} 7. Na3
{[%clk 0:03:02.8]} 7... c3 {[%clk 0:02:52.7]} 8. bxc3 {[%clk 0:03:04.3]} 8... c5
{[%clk 0:02:54.3]} 9. e3 {[%clk 0:03:03.6]} 9... Nc6 {[%clk 0:02:50.6]} 10. Bb2
{[%clk 0:03:05.1]} 10... Bf5 {[%clk 0:02:50.2]} 11. Qe2 {[%clk 0:03:01.3]} 11...
Be4 {[%clk 0:02:48.5]} 12. Rfd1 {[%clk 0:03:02.1]} 12... Qa5 {[%clk 0:02:37.5]}
13. Nc4 {[%clk 0:02:52.7]} 13... Qa4 {[%clk 0:02:38.1]} 14. Bf1 {[%clk
0:02:19.5]} 14... cxd4 {[%clk 0:02:34.9]} 15. cxd4 {[%clk 0:02:16.9]} 15... Rac8
{[%clk 0:02:27.6]} 16. Nfd2 {[%clk 0:02:14.5]} 16... Bf5 {[%clk 0:02:16.4]} 17.
e4 {[%clk 0:02:12.4]} 17... Bg4 {[%clk 0:02:13.2]} 18. f3 {[%clk 0:02:11.4]}
18... Bd7 {[%clk 0:02:10.1]} 19. Nb3 {[%clk 0:02:06.9]} 19... b6 {[%clk
0:02:03.1]} 20. d5 {[%clk 0:01:32.9]} 20... Nb4 {[%clk 0:01:58.6]} 21. Nd4
{[%clk 0:01:27.3]} 21... Rfd8 {[%clk 0:01:45.6]} 22. a3 {[%clk 0:01:22.3]} 22...
Na6 {[%clk 0:01:41.8]} 23. Nxb6 {[%clk 0:01:16]} 23... axb6 {[%clk 0:01:42.1]}
24. Qxa6 {[%clk 0:01:17.6]} 24... Ne8 {[%clk 0:01:35.5]} 25. Qxa4 {[%clk
0:01:15]} 25... Bxa4 {[%clk 0:01:37.4]} 26. Rdc1 {[%clk 0:01:14.9]} 26... Nd6
{[%clk 0:01:36.3]} 27. Ba6 {[%clk 0:00:58]} 27... Ra8 {[%clk 0:01:33.7]} 28. Bd3
{[%clk 0:00:58.6]} 28... e6 {[%clk 0:01:26.6]} 29. Rab1 {[%clk 0:00:52.6]} 29...
exd5 {[%clk 0:01:26.9]} 30. exd5 {[%clk 0:00:53.7]} 30... Rdc8 {[%clk
0:01:08.2]} 31. Nc6 {[%clk 0:00:50.6]} 31... Bf8 {[%clk 0:01:04.2]} 32. Bf6
{[%clk 0:00:43]} 32... Bxc6 {[%clk 0:00:59.8]} 33. Rxc6 {[%clk 0:00:31.1]} 33...
Rxa3 {[%clk 0:01:01.2]} 34. Be2 {[%clk 0:00:30.2]} 34... Ra2 {[%clk 0:00:55.6]}
35. Kf1 {[%clk 0:00:29.4]} 35... Re8 {[%clk 0:00:54.9]} 36. Re1 {[%clk
0:00:27.4]} 36... Nf5 {[%clk 0:00:52.7]} 37. Bd3 {[%clk 0:00:20.2]} 37... Ne3+
{[%clk 0:00:26]} 38. Kg1 {[%clk 0:00:20.3]} 38... Bc5 {[%clk 0:00:27.6]} 39. Kh1
{[%clk 0:00:21]} 39... Kf8 {[%clk 0:00:19.4]} 40. d6 {[%clk 0:00:19.8]} 40...
Nd5 {[%clk 0:00:15.6]} 41. Rxe8+ {[%clk 0:00:17.2]} 41... Kxe8 {[%clk
0:00:17.5]} 42. Bb5 {[%clk 0:00:17.5]} 42... Kd7 {[%clk 0:00:10.2]} 43. Rxc5+
{[%clk 0:00:16.8]} 43... Kxd6 {[%clk 0:00:11.7]} 44. Rc6+ {[%clk 0:00:17.5]} 1-0

[Event "*** Titled Tuesday 3|2 Blitz"]
[Site "Chess.com"]
[Date "2016.08.02"]
[Round "8"]
[White "Ginger_GM"]
[Black "Yaacovn"]
[Result "1/2-1/2"]
[WhiteElo "2403"]
[BlackElo "2610"]
[TimeControl "180+2"]
[EndTime "12:50:00 PDT"]
[Termination "Game drawn by agreement"]

1. e4 {[%clk 0:03:01.9]} 1... c6 {[%clk 0:03:00.8]} 2. Bc4 {[%clk 0:03:01.8]}
2... d5 {[%clk 0:03:02.7]} 3. Bb3 {[%clk 0:03:02.4]} 3... dxe4 {[%clk
0:03:03.2]} 4. Qh5 {[%clk 0:03:02.5]} 4... g6 {[%clk 0:03:03.1]} 5. Qh4 {[%clk
0:03:03.3]} 5... Bg7 {[%clk 0:03:03.2]} 6. Nc3 {[%clk 0:03:03.2]} 6... Bf5
{[%clk 0:03:03.1]} 7. f3 {[%clk 0:03:00.8]} 7... exf3 {[%clk 0:03:01.4]} 8. Nxf3
{[%clk 0:03:01.5]} 8... Nf6 {[%clk 0:03:02.9]} 9. d4 {[%clk 0:03:01.6]} 9...
Nbd7 {[%clk 0:03:03.4]} 10. O-O {[%clk 0:03:01.8]} 10... e6 {[%clk 0:03:03.8]}
11. Bh6 {[%clk 0:02:54.2]} 11... Bxh6 {[%clk 0:03:04.5]} 12. Qxh6 {[%clk
0:02:54.8]} 12... Ng4 {[%clk 0:03:05.8]} 13. Qf4 {[%clk 0:02:46.4]} 13... Qb8
{[%clk 0:03:05.9]} 14. Qd2 {[%clk 0:02:40.4]} 14... O-O {[%clk 0:03:04.6]} 15.
h3 {[%clk 0:02:38.4]} 15... Ngf6 {[%clk 0:03:05.6]} 16. Rae1 {[%clk 0:02:34.6]}
16... Qg3 {[%clk 0:03:00.6]} 17. Re3 {[%clk 0:02:29.5]} 17... Qd6 {[%clk
0:02:44]} 18. g4 {[%clk 0:02:11.1]} 18... Qg3+ {[%clk 0:02:43.1]} 19. Qg2 {[%clk
0:02:11.4]} 19... Qxg2+ {[%clk 0:02:43.8]} 20. Kxg2 {[%clk 0:02:12.2]} 20...
Bxg4 {[%clk 0:02:45.3]} 21. hxg4 {[%clk 0:02:12.9]} 21... Nxg4 {[%clk
0:02:47.2]} 22. Re2 {[%clk 0:02:01.9]} 22... Ndf6 {[%clk 0:02:47.7]} 23. Ne5
{[%clk 0:01:59.2]} 23... Kg7 {[%clk 0:02:40.5]} 24. Ne4 {[%clk 0:01:44.8]} 24...
Nxe4 {[%clk 0:02:30.7]} 25. Rxe4 {[%clk 0:01:45.3]} 25... Nxe5 {[%clk
0:02:31.5]} 26. dxe5 {[%clk 0:01:44.4]} 26... Rad8 {[%clk 0:02:32.6]} 27. Rf2
{[%clk 0:01:41]} 27... Rd7 {[%clk 0:02:23.6]} 28. Kf3 {[%clk 0:01:31.6]} 28...
Rfd8 {[%clk 0:02:23.6]} 29. Ke3 {[%clk 0:01:32.3]} 29... Rd1 {[%clk 0:02:23.1]}
30. a4 {[%clk 0:01:07.3]} 30... a5 {[%clk 0:02:23.3]} 31. Kf3 {[%clk 0:01:06.4]}
31... Rh1 {[%clk 0:02:17.3]} 32. c3 {[%clk 0:01:01.5]} 32... Rd3+ {[%clk
0:02:12.3]} 33. Ke2 {[%clk 0:01:02.5]} 33... Rd7 {[%clk 0:02:07.5]} 34. Bc2
{[%clk 0:00:56]} 34... h5 {[%clk 0:02:06.3]} 35. b4 {[%clk 0:00:56.8]} 35...
axb4 {[%clk 0:02:04.9]} 36. cxb4 {[%clk 0:00:58.1]} 36... Ra1 {[%clk 0:02:02.3]}
37. Kf3 {[%clk 0:00:53.9]} 37... Ra3+ {[%clk 0:01:58.2]} 38. Kg2 {[%clk
0:00:54.3]} 38... Ra2 {[%clk 0:01:49.2]} 39. Ref4 {[%clk 0:00:50]} 39... Rb2
{[%clk 0:01:47.3]} 40. a5 {[%clk 0:00:47]} 40... g5 {[%clk 0:01:34.4]} 41. Re4
{[%clk 0:00:37.2]} 41... Rd5 {[%clk 0:01:34]} 42. Rfe2 {[%clk 0:00:21.9]} 42...
Rb5 {[%clk 0:01:31.5]} 43. Rd4 {[%clk 0:00:20]} 43... R5xb4 {[%clk 0:01:29.4]}
44. Rd7 {[%clk 0:00:21]} 44... Rc4 {[%clk 0:01:20.7]} 45. Bd3 {[%clk 0:00:21]}
45... Rxe2+ {[%clk 0:01:21.1]} 46. Bxe2 {[%clk 0:00:22.4]} 46... Rc5 {[%clk
0:01:22.2]} 47. Bxh5 {[%clk 0:00:23]} 47... Rxe5 {[%clk 0:01:14.5]} 48. Rxf7+
{[%clk 0:00:22.6]} 48... Kh6 {[%clk 0:01:15.5]} 49. Bg4 {[%clk 0:00:24.2]} 49...
Rxa5 {[%clk 0:01:05]} 50. Rxb7 {[%clk 0:00:25.3]} 50... Re5 {[%clk 0:00:56]} 51.
Re7 {[%clk 0:00:24.5]} 51... Kg6 {[%clk 0:00:50.8]} 52. Rxe6+ {[%clk 0:00:15.7]}
52... Rxe6 {[%clk 0:00:51.5]} 53. Bxe6 {[%clk 0:00:16.8]} 53... Kf6 {[%clk
0:00:53.4]} 54. Ba2 {[%clk 0:00:17.5]} 1/2-1/2

[Event "*** Titled Tuesday 3|2 Blitz"]
[Site "Chess.com"]
[Date "2016.08.02"]
[Round "8"]
[White "Sanan_Sjugirov"]
[Black "DeviatkinAndrey"]
[Result "0-1"]
[WhiteElo "2662"]
[BlackElo "2577"]
[TimeControl "180+2"]
[EndTime "12:50:10 PDT"]
[Termination "DeviatkinAndrey won by resignation"]

1. d4 {[%clk 0:03:01.9]} 1... d5 {[%clk 0:02:59.9]} 2. Nf3 {[%clk 0:03:03]} 2...
Nf6 {[%clk 0:03:00.5]} 3. Bg5 {[%clk 0:03:03.5]} 3... Nbd7 {[%clk 0:02:34.7]} 4.
e3 {[%clk 0:02:56.2]} 4... e6 {[%clk 0:02:35.7]} 5. Nbd2 {[%clk 0:02:56]} 5...
Be7 {[%clk 0:02:36.9]} 6. Bd3 {[%clk 0:02:56.7]} 6... b6 {[%clk 0:02:37]} 7. c3
{[%clk 0:02:56.2]} 7... Bb7 {[%clk 0:02:38.3]} 8. Qe2 {[%clk 0:02:56.9]} 8...
Ne4 {[%clk 0:02:28.4]} 9. Bf4 {[%clk 0:02:42.3]} 9... c5 {[%clk 0:02:23]} 10.
Ne5 {[%clk 0:02:40.3]} 10... Nxe5 {[%clk 0:02:20.2]} 11. Bxe5 {[%clk 0:02:42.2]}
11... O-O {[%clk 0:02:20.6]} 12. Qg4 {[%clk 0:02:18]} 12... g6 {[%clk
0:02:01.5]} 13. Nxe4 {[%clk 0:01:56.7]} 13... dxe4 {[%clk 0:02:01.9]} 14. Bc4
{[%clk 0:01:53.2]} 14... Bd5 {[%clk 0:02:00.5]} 15. Bxd5 {[%clk 0:01:38.1]}
15... exd5 {[%clk 0:01:45.9]} 16. h4 {[%clk 0:01:35]} 16... Qc8 {[%clk
0:01:46.4]} 17. Qe2 {[%clk 0:01:34.4]} 17... f6 {[%clk 0:01:34.7]} 18. Bf4
{[%clk 0:01:31.9]} 18... c4 {[%clk 0:01:36.1]} 19. g4 {[%clk 0:01:23.1]} 19...
b5 {[%clk 0:01:13]} 20. a3 {[%clk 0:01:20.7]} 20... a5 {[%clk 0:01:13.8]} 21. g5
{[%clk 0:01:12.5]} 21... fxg5 {[%clk 0:01:10.4]} 22. hxg5 {[%clk 0:01:12.9]}
22... Rf7 {[%clk 0:01:09.9]} 23. Kd2 {[%clk 0:00:51]} 23... b4 {[%clk
0:01:07.5]} 24. axb4 {[%clk 0:00:50.1]} 24... axb4 {[%clk 0:01:08.6]} 25. Qd1
{[%clk 0:00:46.6]} 25... Rf8 {[%clk 0:00:49.2]} 26. Rxa8 {[%clk 0:00:35.8]}
26... Qxa8 {[%clk 0:00:49.8]} 27. Qa1 {[%clk 0:00:35.1]} 27... Qb7 {[%clk
0:00:46.6]} 28. Ke2 {[%clk 0:00:14.3]} 28... Ra8 {[%clk 0:00:46.1]} 29. Qb1
{[%clk 0:00:15.8]} 29... Qd7 {[%clk 0:00:42.3]} 30. Rh4 {[%clk 0:00:13.7]} 30...
Qb7 {[%clk 0:00:24.2]} 31. Rh1 {[%clk 0:00:12.7]} 31... Bf8 {[%clk 0:00:20.1]}
32. Be5 {[%clk 0:00:13.4]} 32... Qd7 {[%clk 0:00:20.6]} 33. Rh4 {[%clk
0:00:13.6]} 33... Qf5 {[%clk 0:00:21.8]} 34. Bf4 {[%clk 0:00:14.8]} 34... Qd7
{[%clk 0:00:21.6]} 35. Be5 {[%clk 0:00:13.6]} 35... Qa4 {[%clk 0:00:16.6]} 36.
Rh1 {[%clk 0:00:13.1]} 36... Qb3 {[%clk 0:00:16.3]} 37. Rxh7 {[%clk 0:00:11.4]}
37... bxc3 {[%clk 0:00:17.5]} 38. Rh8+ {[%clk 0:00:11.2]} 38... Kf7 {[%clk
0:00:18.3]} 39. Rh7+ {[%clk 0:00:12.5]} 39... Ke6 {[%clk 0:00:19.8]} 40. Kf1
{[%clk 0:00:10.1]} 40... cxb2 {[%clk 0:00:18.7]} 0-1